fUSD/lending_fUSD_20240420
["ID","MTS","AMOUNT","RATE_DAILY","PERIOD"]
[323053280,1713621094036,-500.0,0.00016712,2]
[323053281,1713621094047,-635.04,0.00016712,2]
[323053282,1713621094057,-639.54,0.00016712,2]
[323053283,1713621094067,-500.0,0.00016712,2]
[323053284,1713621094077,-500.0,0.00016712,2]
[323053285,1713621094088,-852.82,0.00016712,2]
[323053286,1713621094099,-654.32,0.00016712,2]
[323053287,1713621094110,-500.0,0.00016712,2]
[323053288,1713621094121,-502.56,0.00016712,2]
[323053289,1713621094131,-500.0,0.00016712,2]
[323053290,1713621094142,-500.0,0.00016712,2]
[323053291,1713621094153,-500.0,0.00016712,2]
[323053292,1713621094163,-500.0,0.00016712,2]
[323053293,1713621094173,-611.35,0.00016712,2]
[323053294,1713621094184,-500.0,0.00016712,2]
[323053295,1713621094194,-735.88,0.00016712,2]
[323053296,1713621094205,-500.0,0.00016712,2]
[323053297,1713621094215,-717.35,0.00016712,2]
[323053298,1713621094225,-500.0,0.00016712,2]
[323053299,1713621094234,-539.29,0.00016712,2]
[323053300,1713621094245,-500.0,0.00016712,2]
[323053301,1713621094255,-500.0,0.00016712,2]
[323053302,1713621094265,-500.0,0.00016712,2]
[323053303,1713621094276,-500.0,0.00016712,2]
[323053304,1713621094286,-500.0,0.00016712,2]
[323053305,1713621094302,-500.0,0.00016712,2]
[323053306,1713621094316,-500.0,0.00016712,2]
[323053307,1713621094331,-500.0,0.00016712,2]
[323053308,1713621094344,-569.73,0.00016712,2]
[323053309,1713621094357,-500.0,0.00016712,2]
[323053310,1713621094371,-500.0,0.00016712,2]
[323053311,1713621094386,-333.39371792,0.00016712,2]
[323053312,1713621094401,-827.03,0.00016712,2]
[323053313,1713621094414,-637.21,0.00016712,2]
[323053314,1713621094428,-500.0,0.00016712,2]
[323053315,1713621094441,-500.0,0.00016712,2]
[323053316,1713621094453,-500.0,0.00016712,2]
[323053317,1713621094467,-579.7,0.00016712,2]
[323053318,1713621094481,-969.36,0.00016712,2]
[323053319,1713621094495,-500.0,0.00016712,2]
[323053320,1713621094509,-781.94,0.00016712,2]
[323053321,1713621094524,-667.13,0.00016712,2]
[323053322,1713621094536,-500.0,0.00016712,2]
[323053323,1713621094548,-500.0,0.00016712,2]
[323053324,1713621094565,-500.0,0.00016712,2]
[323053325,1713621094578,-500.0,0.00016712,2]
[323053326,1713621094593,-500.0,0.00016712,2]
[323053327,1713621094607,-500.0,0.00016712,2]
[323053328,1713621094621,-770.44,0.00016712,2]
[323053329,1713621094635,-1099.12,0.00016712,2]
[323053330,1713621094649,-500.0,0.00016712,2]
[323053331,1713621094664,-597.89,0.00016712,2]
[323053332,1713621094680,-455.7811216,0.00016712,2]
[323053333,1713621094696,-500.0,0.00016712,2]
[323053334,1713621094710,-522.54,0.00016712,2]
[323053335,1713621094724,-500.0,0.00016712,2]
[323053336,1713621094738,-500.0,0.00016712,2]
[323053337,1713621094751,-532.55,0.00016712,2]
[323053338,1713621094764,-500.0,0.00016712,2]
[323053339,1713621094780,-241.50772132,0.00016712,2]
[323053340,1713621094794,-618.57,0.00016712,2]
[323053341,1713621094810,-500.0,0.00016712,2]
[323053342,1713621094823,-737.86,0.00016712,2]
[323053343,1713621094836,-500.0,0.00016712,2]
[323053344,1713621094847,-515.87,0.00016712,2]
[323053345,1713621094861,-912.68,0.00016712,2]
[323053346,1713621094875,-500.0,0.00016712,2]
[323053347,1713621094887,-405.32763726,0.00016712,2]
[323053348,1713621094901,-500.0,0.00016712,2]
[323053349,1713621094914,-860.75,0.00016712,2]
[323053350,1713621094928,-500.0,0.00016712,2]
[323053351,1713621094941,-702.21,0.00016712,2]
[323053352,1713621094955,-500.0,0.00016712,2]
[323053353,1713621094969,-500.0,0.00016712,2]
[323053354,1713621094983,-500.0,0.00016712,2]
[323053355,1713621094998,-500.0,0.00016712,2]
[323053356,1713621095012,-821.61,0.00016712,2]
[323053357,1713621095025,-500.0,0.00016712,2]
[323053358,1713621095038,-821.76,0.00016712,2]
[323053359,1713621095054,-549.15,0.00016712,2]
[323053360,1713621095067,-500.0,0.00016712,2]
[323053361,1713621095081,-500.0,0.00016712,2]
[323053362,1713621095095,-500.0,0.00016712,2]
[323053363,1713621095108,-500.0,0.00016712,2]
[323053364,1713621095122,-500.0,0.00016712,2]
[323053365,1713621095136,-940.84,0.00016712,2]
[323053366,1713621095150,-500.0,0.00016712,2]
[323053367,1713621095163,-863.56,0.00016712,2]
[323053368,1713621095177,-500.0,0.00016712,2]
[323053369,1713621095190,-1083.21,0.00016712,2]
[323053370,1713621095203,-500.0,0.00016712,2]
[323053371,1713621095217,-316.70171499,0.00016712,2]
[323053372,1713621095231,-1649.11,0.00016712,2]
[323053373,1713621095244,-500.0,0.00016712,2]
[323053374,1713621095258,-500.0,0.00016712,2]
[323053375,1713621095271,-933.2,0.00016712,2]
[323053376,1713621095285,-500.0,0.00016712,2]
[323053377,1713621095305,-1738.53,0.00016712,2]
[323053378,1713621095319,-500.0,0.00016712,2]
[323053379,1713621095333,-500.0,0.00016712,2]
[323053380,1713621095347,-500.0,0.00016712,2]
[323053381,1713621095361,-641.19,0.00016712,2]
[323053382,1713621095375,-546.2,0.00016712,2]
[323053383,1713621095389,-669.09,0.00016712,2]
[323053384,1713621095403,-538.48,0.00016712,2]
[323053385,1713621095416,-500.0,0.00016712,2]
[323053386,1713621095429,-526.85,0.00016712,2]
[323053387,1713621095442,-1472.9,0.00016712,2]
[323053388,1713621095458,-500.0,0.00016712,2]
[323053389,1713621095470,-679.04,0.00016712,2]
[323053390,1713621095483,-633.05,0.00016712,2]
[323053391,1713621095497,-500.0,0.00016712,2]
[323053392,1713621095510,-500.0,0.00016712,2]
[323053393,1713621095523,-500.0,0.00016712,2]
[323053394,1713621095536,-889.7,0.00016712,2]
[323053395,1713621095551,-749.34,0.00016712,2]
[323053396,1713621095564,-500.0,0.00016712,2]
[323053397,1713621095578,-614.66,0.00016712,2]
[323053398,1713621095591,-669.86,0.00016712,2]
[323053399,1713621095604,-627.14,0.00016712,2]
[323053400,1713621095618,-500.0,0.00016712,2]
[323053401,1713621095632,-887.51,0.00016712,2]
[323053402,1713621095644,-500.0,0.00016712,2]
[323053403,1713621095657,-595.2,0.00016712,2]
[323053404,1713621095671,-500.0,0.00016712,2]
[323053405,1713621095684,-500.0,0.00016712,2]
[323053406,1713621095697,-500.0,0.00016712,2]
[323053407,1713621095711,-712.4,0.00016712,2]
[323053408,1713621095724,-500.0,0.00016712,2]
[323053409,1713621095739,-654.49,0.00016712,2]
[323053410,1713621095752,-583.86,0.00016712,2]
[323053411,1713621095765,-714.19,0.00016712,2]
[323053412,1713621095779,-543.54,0.00016712,2]
[323053413,1713621095793,-856.07,0.00016712,2]
[323053414,1713621095806,-519.9,0.00016712,2]
[323053415,1713621095820,-500.0,0.00016712,2]
[323053416,1713621095834,-1382.29,0.00016712,2]
[323053417,1713621095847,-500.0,0.00016712,2]
[323053418,1713621095860,-704.01,0.00016712,2]
[323053419,1713621095873,-500.0,0.00016712,2]
[323053420,1713621095887,-943.86,0.00016712,2]
[323053421,1713621095899,-778.05,0.00016712,2]
[323053422,1713621095912,-533.87,0.00016712,2]
[323053423,1713621095925,-1206.79,0.00016712,2]
[323053424,1713621095938,-500.0,0.00016712,2]
[323053425,1713621095953,-864.0,0.00016712,2]
[323053426,1713621095966,-871.35,0.00016712,2]
[323053427,1713621095980,-500.0,0.00016712,2]
[323053428,1713621095994,-500.0,0.00016712,2]
[323053429,1713621096008,-500.0,0.00016712,2]
[323053430,1713621096020,-581.68,0.00016712,2]
[323053431,1713621096033,-998.69,0.00016712,2]
[323053432,1713621096046,-580.51,0.00016712,2]
[323053433,1713621096059,-500.0,0.00016712,2]
[323053434,1713621096072,-564.88,0.00016712,2]
[323053435,1713621096085,-777.99,0.00016712,2]
[323053436,1713621096099,-566.7,0.00016712,2]
[323053437,1713621096113,-500.0,0.00016712,2]
[323053438,1713621096126,-772.56,0.00016712,2]
[323053439,1713621096140,-922.4,0.00016712,2]
[323053440,1713621096153,-500.0,0.00016712,2]
[323053441,1713621096166,-500.0,0.00016712,2]
[323053442,1713621096179,-741.19,0.00016712,2]
[323053443,1713621096193,-500.0,0.00016712,2]
[323053444,1713621096206,-510.23,0.00016712,2]
[323053445,1713621096219,-500.0,0.00016712,2]
[323053446,1713621096232,-1301.99,0.00016712,2]
[323053447,1713621096244,-1011.91,0.00016712,2]
[323053448,1713621096257,-729.34,0.00016712,2]
[323053449,1713621096270,-598.99,0.00016712,2]
[323053450,1713621096283,-590.27,0.00016712,2]
[323053451,1713621096297,-500.0,0.00016712,2]
[323053452,1713621096311,-500.0,0.00016712,2]
[323053453,1713621096324,-983.5,0.00016712,2]
[323053454,1713621096337,-500.0,0.00016712,2]
[323053455,1713621096350,-500.0,0.00016712,2]
[323053456,1713621096363,-500.0,0.00016712,2]
[323053457,1713621096377,-829.71,0.00016712,2]
[323053458,1713621096391,-500.0,0.00016712,2]
[323053459,1713621096404,-605.59,0.00016712,2]
[323053460,1713621096417,-500.0,0.00016712,2]
[323053461,1713621096431,-1243.7,0.00016712,2]
[323053462,1713621096445,-1886.34,0.00016712,2]
[323053463,1713621096460,-500.0,0.00016712,2]
[323053464,1713621096473,-685.34,0.00016712,2]
[323053465,1713621096486,-500.0,0.00016712,2]
[323053466,1713621096500,-500.0,0.00016712,2]
[323053467,1713621096513,-500.0,0.00016712,2]
[323053468,1713621096525,-500.0,0.00016712,2]
[323053469,1713621096538,-500.0,0.00016712,2]
[323053470,1713621096551,-723.5,0.00016712,2]
[323053471,1713621096564,-612.53,0.00016712,2]
[323053472,1713621096577,-730.92,0.00016712,2]
[323053473,1713621096590,-500.0,0.00016712,2]
[323053474,1713621096603,-500.0,0.00016712,2]
[323053475,1713621096617,-1025.52,0.00016712,2]
[323053476,1713621096630,-339.56409607,0.00016712,2]
[323053477,1713621096642,-500.0,0.00016712,2]
[323053478,1713621096656,-500.0,0.00016712,2]
[323053479,1713621096670,-1486.68,0.00016712,2]
[323053480,1713621096682,-500.0,0.00016712,2]
[323053481,1713621096695,-970.1,0.00016712,2]
[323053482,1713621096708,-500.0,0.00016712,2]
[323053483,1713621096721,-500.0,0.00016712,2]
[323053484,1713621096734,-600.76,0.00016712,2]
[323053485,1713621096748,-602.58868355,0.00016712,2]
[323053486,1713621096762,-500.0,0.00016712,2]
[323053487,1713621096777,-580.95,0.00016712,2]
[323053488,1713621096790,-775.5,0.00016712,2]
[323053489,1713621096804,-1195.92,0.00016712,2]
[323053490,1713621096817,-441.47280633,0.00016712,2]
[323053491,1713621096832,-971.12,0.00016712,2]
[323053492,1713621096845,-558.98,0.00016712,2]
[323053493,1713621096860,-751.59,0.00016712,2]
[323053494,1713621096874,-500.0,0.00016712,2]
[323053495,1713621096896,-500.0,0.00016712,2]
[323053496,1713621096909,-1627.69,0.00016712,2]
[323053497,1713621096923,-1693.65,0.00016712,2]
[323053498,1713621096936,-712.6,0.00016712,2]
[323053499,1713621096949,-500.0,0.00016712,2]
[323053500,1713621096962,-500.0,0.00016712,2]
[323053501,1713621096976,-964.32,0.00016712,2]
[323053502,1713621096990,-500.0,0.00016712,2]
[323053503,1713621097002,-611.81,0.00016712,2]
[323053504,1713621097016,-1500.36,0.00016712,2]
[323053505,1713621097029,-630.97,0.00016712,2]
[323053506,1713621097043,-1123.09,0.00016712,2]
[323053507,1713621097056,-500.0,0.00016712,2]
[323053508,1713621097069,-1122.67,0.00016712,2]
[323053509,1713621097082,-500.0,0.00016712,2]
[323053510,1713621097096,-571.83,0.00016712,2]
[323053511,1713621097109,-959.94,0.00016712,2]
[323053512,1713621097123,-666.18,0.00016712,2]
[323053513,1713621097137,-717.02,0.00016712,2]
[323053514,1713621097151,-500.0,0.00016712,2]
[323053515,1713621097164,-656.38,0.00016712,2]
[323053516,1713621097175,-672.57,0.00016712,2]
[323053517,1713621097187,-817.63,0.00016712,2]
[323053518,1713621097198,-500.0,0.00016712,2]
[323053519,1713621097210,-748.28,0.00016712,2]
[323053520,1713621097223,-1401.32,0.00016712,2]
[323053521,1713621097236,-1699.19,0.00016712,2]
[323053522,1713621097249,-1021.58,0.00016712,2]
[323053523,1713621097261,-500.0,0.00016712,2]
[323053524,1713621097273,-2008.01,0.00016712,2]
[323053525,1713621097288,-502.08,0.00016712,2]
[323053526,1713621097301,-623.84,0.00016712,2]
[323053527,1713621097315,-556.29,0.00016712,2]
[323053528,1713621097329,-1672.8,0.00016712,2]
[323053529,1713621097342,-1383.08,0.00016712,2]
[323053530,1713621097355,-500.0,0.00016712,2]
[323053531,1713621097369,-905.55,0.00016712,2]
[323053532,1713621097382,-500.0,0.00016712,2]
[323053533,1713621097395,-500.0,0.00016712,2]
[323053534,1713621097408,-500.0,0.00016712,2]
[323053535,1713621097420,-500.0,0.00016712,2]
[323053536,1713621097433,-500.0,0.00016712,2]
[323053537,1713621097446,-500.0,0.00016712,2]
[323053538,1713621097460,-1271.86,0.00016712,2]
[323053539,1713621097472,-531.26,0.00016712,2]
[323053540,1713621097485,-858.15,0.00016712,2]
[323053541,1713621097499,-2051.78,0.00016712,2]
[323053542,1713621097511,-500.0,0.00016712,2]
[323053543,1713621097524,-500.0,0.00016712,2]
[323053544,1713621097537,-2102.91,0.00016712,2]
[323053545,1713621097550,-495.25,0.00016712,2]
[323053546,1713621097563,-888.43,0.00016712,2]
[323053547,1713621097576,-500.0,0.00016712,2]
[323053548,1713621097589,-547.06,0.00016712,2]
[323053549,1713621097603,-500.0,0.00016712,2]
[323053550,1713621097615,-1220.03,0.00016712,2]
[323053551,1713621097630,-1132.15,0.00016712,2]
[323053552,1713621097643,-1428.28,0.00016712,2]
[323053553,1713621097655,-1590.37,0.00016712,2]
[323053554,1713621097669,-640.38,0.00016712,2]
[323053555,1713621097682,-621.99,0.00016712,2]
[323053556,1713621097695,-1083.02,0.00016712,2]
[323053557,1713621097709,-912.32,0.00016712,2]
[323053558,1713621097722,-1323.41,0.00016712,2]
[323053559,1713621097735,-500.0,0.00016712,2]
[323053560,1713621097749,-500.0,0.00016712,2]
[323053561,1713621097761,-827.0,0.00016712,2]
[323053562,1713621097773,-590.76,0.00016712,2]
[323053563,1713621097786,-720.61,0.00016712,2]
[323053564,1713621097799,-1207.81,0.00016712,2]
[323053565,1713621097811,-500.0,0.00016712,2]
[323053566,1713621097824,-972.02,0.00016712,2]
[323053567,1713621097837,-1649.09,0.00016712,2]
[323053568,1713621097852,-500.0,0.00016712,2]
[323053569,1713621097865,-3308.96,0.00016712,2]
[323053570,1713621097879,-1214.04,0.00016712,2]
[323053571,1713621097891,-500.0,0.00016712,2]
[323053572,1713621097904,-500.0,0.00016712,2]
[323053573,1713621097916,-500.0,0.00016712,2]
[323053574,1713621097929,-803.54,0.00016712,2]
[323053575,1713621097943,-1303.19,0.00016712,2]
[323053576,1713621097957,-500.0,0.00016712,2]
[323053577,1713621097970,-3936.85,0.00016712,2]
[323053578,1713621097984,-500.0,0.00016712,2]
[323053579,1713621097999,-599.69,0.00016712,2]
[323053580,1713621098012,-586.97,0.00016712,2]
[323053581,1713621098024,-1031.32,0.00016712,2]
[323053582,1713621098052,-789.55,0.00016712,2]
[323053583,1713621098069,-500.0,0.00016712,2]
[323053584,1713621098086,-1204.32,0.00016712,2]
[323053585,1713621098101,-500.0,0.00016712,2]
[323053586,1713621098115,-500.0,0.00016712,2]
[323053587,1713621098130,-500.0,0.00016712,2]
[323053588,1713621098143,-500.0,0.00016712,2]
[323053589,1713621098656,-702.73,0.00016712,2]
[323053590,1713621098686,-516.52,0.00016712,2]
[323053591,1713621098697,-500.0,0.00016712,2]
[323053592,1713621098707,-500.0,0.00016712,2]
[323053593,1713621098718,-3310.74,0.00016712,2]
[323053594,1713621098728,-500.0,0.00016712,2]
[323053595,1713621098740,-500.0,0.00016712,2]
[323053596,1713621098750,-500.0,0.00016712,2]
[323053597,1713621098759,-500.0,0.00016712,2]
[323053598,1713621098768,-2883.58,0.00016712,2]
[323053599,1713621098779,-1816.08,0.00016712,2]
[323053600,1713621098789,-585.36,0.00016712,2]
[323053601,1713621098799,-855.47,0.00016712,2]
[323053602,1713621098809,-534.99,0.00016712,2]
[323053603,1713621098819,-500.0,0.00016712,2]
[323053604,1713621098829,-25055.79,0.00016712,2]
[323053605,1713621098838,-1302.76,0.00016712,2]
[323053606,1713621098848,-2836.68,0.00016712,2]
[323053607,1713621098858,-11346.84,0.00016712,2]
[323053608,1713621098868,-1460.91,0.00016712,2]
[323053609,1713621098878,-604.68,0.00016712,2]
[323053610,1713621098889,-500.0,0.00016712,2]
[323053611,1713621098899,-2104.73,0.00016712,2]
[323053612,1713621098909,-500.0,0.00016712,2]
[323053613,1713621098919,-500.0,0.00016712,2]
[323053614,1713621098929,-500.0,0.00016712,2]
[323053615,1713621098940,-500.0,0.00016712,2]
[323053616,1713621098950,-500.0,0.00016712,2]
[323053617,1713621098960,-500.0,0.00016712,2]
[323053618,1713621098971,-2073.42,0.00016712,2]
[323053619,1713621098982,-1526.62,0.00016712,2]
[323053620,1713621098994,-500.0,0.00016712,2]
[323053621,1713621099003,-500.0,0.00016712,2]
[323053622,1713621099013,-500.0,0.00016712,2]
[323053623,1713621099023,-1538.77,0.00016712,2]
[323053624,1713621099033,-17543.18,0.00016712,2]
[323053625,1713621099042,-500.0,0.00016712,2]
[323053626,1713621099052,-500.0,0.00016712,2]
[323053627,1713621099061,-4660.49,0.00016712,2]
[323053628,1713621099071,-2699.08,0.00016712,2]
[323053629,1713621099081,-1491.91,0.00016712,2]
[323053630,1713621099090,-500.0,0.00016712,2]
[323053631,1713621099100,-1530.53,0.00016712,2]
[323053632,1713621099109,-1179.82,0.00016712,2]
[323053633,1713621099119,-312.24166272,0.00016712,2]
[323053634,1713621099129,-581.88,0.00016712,2]
[323053635,1713621099138,-500.0,0.00016712,2]
[323053636,1713621099147,-2419.34,0.00016712,2]
[323053637,1713621099157,-500.0,0.00016712,2]
[323053638,1713621099166,-1046.7,0.00016712,2]
[323053639,1713621099176,-1397.79,0.00016712,2]
[323053640,1713621099186,-929.27,0.00016712,2]
[323053641,1713621099196,-2207.26,0.00016712,2]
[323053642,1713621099206,-5291.84,0.00016712,2]
[323053643,1713621099215,-983.83,0.00016712,2]
[323053644,1713621099226,-584.35,0.00016712,2]
[323053645,1713621099235,-689.72,0.00016712,2]
[323053646,1713621099247,-2126.15,0.00016712,2]
[323053647,1713621099257,-2569.48,0.00016712,2]
[323053648,1713621099268,-3579.93,0.00016712,2]
[323053649,1713621099278,-873.88,0.00016712,2]
[323053650,1713621099289,-820.73,0.00016712,2]
[323053651,1713621099303,-500.0,0.00016712,2]
[323053652,1713621099314,-5218.13,0.00016712,2]
[323053653,1713621099324,-500.0,0.00016712,2]
[323053654,1713621099334,-500.0,0.00016712,2]
[323053655,1713621099344,-500.0,0.00016712,2]
[323053656,1713621099355,-987.0,0.00016712,2]
[323053657,1713621099365,-270.74072663,0.00016712,2]
[323053658,1713621099377,-20114.69,0.00016712,2]
[323053659,1713621099387,-500.0,0.00016712,2]
[323053660,1713621099397,-893.57,0.00016712,2]
[323053661,1713621099407,-500.0,0.00016712,2]
[323053662,1713621099417,-637.43,0.00016712,2]
[323053663,1713621099427,-1731.18,0.00016712,2]
[323053664,1713621099437,-1285.12,0.00016712,2]
[323053665,1713621099446,-1109.59,0.00016712,2]
[323053666,1713621099457,-1096.27,0.00016712,2]
[323053667,1713621099467,-500.0,0.00016712,2]
[323053668,1713621099478,-725.21,0.00016712,2]
[323053669,1713621099489,-500.0,0.00016712,2]
[323053670,1713621099499,-1089.81,0.00016712,2]
[323053671,1713621099508,-508.71,0.00016712,2]
[323053672,1713621099519,-500.0,0.00016712,2]
[323053673,1713621099530,-500.0,0.00016712,2]
[323053674,1713621099540,-520.08,0.00016712,2]
[323053675,1713621099550,-1517.58,0.00016712,2]
[323053676,1713621099561,-500.0,0.00016712,2]
[323053677,1713621099571,-500.0,0.00016712,2]
[323053678,1713621099581,-500.0,0.00016712,2]
[323053679,1713621099591,-1955.1,0.00016712,2]
[323053680,1713621099601,-500.0,0.00016712,2]
[323053681,1713621099611,-1531.19,0.00016712,2]
[323053682,1713621099622,-620.62,0.00016712,2]
[323053683,1713621099633,-967.39,0.00016712,2]
[323053684,1713621099643,-7480.38,0.00016712,2]
[323053685,1713621099654,-747.89,0.00016712,2]
[323053686,1713621099664,-1894.49,0.00016712,2]
[323053687,1713621099674,-873.58,0.00016712,2]
[323053688,1713621099684,-500.0,0.00016712,2]
[323053689,1713621099694,-1993.22,0.00016712,2]
[323053690,1713621099705,-880.45,0.00016712,2]
[323053691,1713621099715,-500.0,0.00016712,2]
[323053692,1713621099725,-500.0,0.00016712,2]
[323053693,1713621099736,-500.0,0.00016712,2]
[323053694,1713621099747,-1085.31,0.00016712,2]
[323053695,1713621099758,-500.0,0.00016712,2]
[323053696,1713621099768,-2753.72,0.00016712,2]
[323053697,1713621099778,-500.0,0.00016712,2]
[323053698,1713621099788,-1162.41,0.00016712,2]
[323053699,1713621099798,-2731.21,0.00016712,2]
[323053700,1713621099807,-500.0,0.00016712,2]
[323053701,1713621099817,-1954.97,0.00016712,2]
[323053702,1713621099827,-2627.79,0.00016712,2]
[323053703,1713621099838,-794.92,0.00016712,2]
[323053704,1713621099848,-500.0,0.00016712,2]
[323053705,1713621099858,-1013.89,0.00016712,2]
[323053706,1713621099869,-500.0,0.00016712,2]
[323053707,1713621099879,-1131.55,0.00016712,2]
[323053708,1713621099890,-622.04,0.00016712,2]
[323053709,1713621099900,-1320.88,0.00016712,2]
[323053710,1713621099910,-500.0,0.00016712,2]
[323053711,1713621099920,-1413.35,0.00016712,2]
[323053712,1713621099930,-500.0,0.00016712,2]
[323053713,1713621099940,-500.0,0.00016712,2]
[323053714,1713621099951,-2346.4,0.00016712,2]
[323053715,1713621099961,-563.88,0.00016712,2]
[323053716,1713621099972,-803.26,0.00016712,2]
[323053717,1713621099982,-2292.01,0.00016712,2]
[323053718,1713621099992,-500.0,0.00016712,2]
[323053719,1713621100002,-831.92,0.00016712,2]
[323053720,1713621100013,-1128.04,0.00016712,2]
[323053721,1713621100023,-5369.64,0.00016712,2]
[323053722,1713621100033,-428.16435385,0.00016712,2]
[323053723,1713621100043,-3431.1,0.00016712,2]
[323053724,1713621100053,-680.01,0.00016712,2]
[323053725,1713621100063,-546.08,0.00016712,2]
[323053726,1713621100074,-600.0929416,0.00016712,2]
[323053727,1713621100084,-2676.86,0.00016712,2]
[323053728,1713621100094,-500.0,0.00016712,2]
[323053729,1713621100104,-727.28,0.00016712,2]
[323053730,1713621100114,-2216.75,0.00016712,2]
[323053731,1713621100124,-500.0,0.00016712,2]
[323053732,1713621100134,-823.84,0.00016712,2]
[323053733,1713621100144,-500.0,0.00016712,2]
[323053734,1713621100154,-1588.82,0.00016712,2]
[323053735,1713621100165,-1811.35,0.00016712,2]
[323053736,1713621100176,-841.25,0.00016712,2]
[323053737,1713621100187,-500.0,0.00016712,2]
[323053738,1713621100198,-500.0,0.00016712,2]
[323053739,1713621100208,-605.42,0.00016712,2]
[323053740,1713621100219,-500.0,0.00016712,2]
[323053741,1713621100230,-906.35,0.00016712,2]
[323053742,1713621100241,-866.08,0.00016712,2]
[323053743,1713621100252,-1171.0,0.00016712,2]
[323053744,1713621100263,-3500.27,0.00016712,2]
[323053745,1713621100273,-1349.52,0.00016712,2]
[323053746,1713621100286,-4084.13,0.00016712,2]
[323053747,1713621100297,-506.37,0.00016712,2]
[323053748,1713621100308,-2730.13,0.00016712,2]
[323053749,1713621100318,-1215.96,0.00016712,2]
[323053750,1713621100329,-500.0,0.00016712,2]
[323053751,1713621100339,-500.0,0.00016712,2]
[323053752,1713621100350,-500.0,0.00016712,2]
[323053753,1713621100361,-570.63,0.00016712,2]
[323053754,1713621100371,-1517.62,0.00016712,2]
[323053755,1713621100382,-500.0,0.00016712,2]
[323053756,1713621100393,-2492.62,0.00016712,2]
[323053757,1713621100403,-1694.66,0.00016712,2]
[323053758,1713621100413,-589.63,0.00016712,2]
[323053759,1713621100423,-500.0,0.00016712,2]
[323053760,1713621100434,-1038.52,0.00016712,2]
[323053761,1713621100445,-544.68,0.00016712,2]
[323053762,1713621100455,-745.95,0.00016712,2]
[323053763,1713621100465,-500.0,0.00016712,2]
[323053764,1713621100476,-2146.81,0.00016712,2]
[323053765,1713621100486,-500.0,0.00016712,2]
[323053766,1713621100497,-12863.04,0.00016712,2]
[323053767,1713621100507,-500.0,0.00016712,2]
[323053768,1713621100516,-1580.69,0.00016712,2]
[323053769,1713621100527,-872.9,0.00016712,2]
[323053770,1713621100538,-2481.94,0.00016712,2]
[323053771,1713621100548,-2416.85,0.00016712,2]
[323053772,1713621100558,-517.67,0.00016712,2]
[323053773,1713621100568,-716.61,0.00016712,2]
[323053774,1713621100579,-607.93,0.00016712,2]
[323053775,1713621100589,-500.0,0.00016712,2]
[323053776,1713621100600,-698.46,0.00016712,2]
[323053777,1713621100610,-1176.49,0.00016712,2]
[323053778,1713621100620,-1895.23,0.00016712,2]
[323053779,1713621100631,-834.84,0.00016712,2]